bitfinex-derivatives/quotes_SOLF0:USTF0_20241222
["timestamp","ask_amount","ask_price","bid_price","bid_amount"]
[1734834255633,3.0,182.31,182.22,16.56851385]
[1734834256440,3.0,182.31,182.27,2.7447]
[1734834256643,5.7239,182.33,182.27,2.7447]
[1734834257645,2.98,182.33,182.2,3.0]
[1734834257839,2.98,182.33,182.21,16.56851385]
[1734834258145,2.98,182.33,182.24,16.56851385]
[1734834258344,2.98,182.36,182.25,2.98]
[1734834258745,2.7437,182.35,182.29,2.7444]
[1734834260746,2.98,182.36,182.29,2.7444]
[1734834260940,2.7438,182.34,182.29,2.7444]
[1734834261741,2.7441,182.32,182.25,2.98]
[1734834261945,2.7441,182.32,182.27,2.7448]
[1734834262649,2.7441,182.32,182.28,2.7446]
[1734834265744,2.98,182.36,182.3,2.7443]
[1734834266156,2.7437,182.35,182.3,2.7443]
[1734834266347,2.98,182.36,182.3,2.7443]
[1734834267048,2.7438,182.34,182.29,2.7445]
[1734834267252,2.98,182.36,182.25,2.98]
[1734834267452,16.56851385,182.35,182.21,2.98]
[1734834267848,16.56851385,182.35,182.21,19.54851385]
[1734834268752,2.7441,182.32,182.21,2.98]
[1734834268942,2.98,182.32,182.21,2.98]
[1734834269143,2.7444,182.3,182.25,2.7451]
[1734834269344,19.54851385,182.32,182.19,60.34042119]
[1734834269549,5.0454,182.31,182.19,60.34042119]
[1734834269754,2.7447,182.28,182.24,2.7452]
[1734834269945,3.3372,182.31,182.21,3.0]
[1734834271551,6.0814,182.31,182.26,2.7448]
[1734834271849,3.3372,182.31,182.21,3.0]
[1734834272053,3.3372,182.31,182.19,60.34042119]
[1734834272448,4.9879,182.31,182.2,60.34042119]
[1734834273150,4.9879,182.31,182.21,2.7455]
[1734834273456,16.56851385,182.3,182.18,60.34042119]
[1734834274356,2.7454,182.23,182.18,63.08632119]
[1734834274652,5.7454,182.23,182.18,63.08632119]
[1734834274858,5.7454,182.23,182.19,60.34042119]
[1734834276155,5.7454,182.23,182.18,63.08632119]
[1734834276850,2.7455,182.22,182.18,63.08632119]
[1734834277052,3.0,182.26,182.2,2.7457]
[1734834277454,5.745,182.26,182.18,60.34042119]
[1734834277758,4.9879,182.31,182.18,60.34042119]
[1734834277956,3.0,182.3,182.19,3.0]
[1734834278156,3.0,182.3,182.2,16.56851385]
[1734834278356,3.0,182.3,182.25,2.7449]
[1734834278657,5.7443,182.3,182.25,2.7449]
[1734834279853,3.0,182.3,182.27,2.7447]
[1734834280758,2.7441,182.31,182.27,2.7447]
[1734834280961,3.0,182.33,182.23,63.34042119]
[1734834281262,3.0,182.33,182.23,3.0]
[1734834281858,3.3023,182.35,182.23,19.56851385]
[1734834282052,2.7437,182.34,182.3,2.7443]
[1734834283264,6.3023,182.35,182.3,2.7443]
[1734834283459,3.0,182.35,182.3,2.7443]
[1734834284065,5.7436,182.35,182.31,2.7441]
[1734834284363,3.0,182.39,182.28,3.0]
[1734834284962,16.56851385,182.42,182.27,1.769]
[1734834284963,2.98,182.41,182.27,1.769]
[1734834285167,2.98,182.41,182.28,2.98]
[1734834285361,2.98,182.41,182.31,2.744]
[1734834285561,2.98,182.41,182.28,2.98]
[1734834285761,2.98,182.41,182.28,6.3609]
[1734834286262,18.18891385,182.45,182.28,6.3609]
[1734834286462,5.7225,182.42,182.3,16.56851385]
[1734834286865,2.98,182.42,182.3,16.56851385]
[1734834287065,2.98,182.43,182.3,16.56851385]
[1734834287365,5.7224,182.43,182.33,2.7437]
[1734834287572,5.7224,182.43,182.34,2.98]
[1734834287865,2.7424,182.43,182.34,2.98]
[1734834288068,2.7422,182.44,182.39,2.7428]
[1734834288371,1.6204,182.45,182.34,2.98]
[1734834288666,4.3624,182.45,182.39,2.7428]
[1734834288861,2.742,182.45,182.34,2.98]
[1734834289068,6.4417,182.46,182.34,2.98]
[1734834289263,6.4417,182.46,182.41,2.7426]
[1734834289464,57.06,182.49,182.35,1.6583]
[1734834289663,2.98,182.47,182.36,3.3247]
[1734834289960,2.7417,182.47,182.36,3.3247]
[1734834290162,2.98,182.48,182.36,3.3247]
[1734834290762,2.98,182.48,182.36,19.89321385]
[1734834291372,2.7414,182.49,182.44,2.7422]
[1734834291864,2.7414,182.5,182.44,2.7422]
[1734834292167,6.4037,182.51,182.41,2.98]
[1734834292369,1.7302,182.51,182.41,2.98]
[1734834293059,2.7413,182.5,182.44,2.7422]
[1734834293259,2.7413,182.5,182.41,2.98]
[1734834294570,2.7413,182.5,182.45,2.742]
[1734834295875,4.4713,182.51,182.46,2.7418]
[1734834296268,2.98,182.53,182.41,2.98]
[1734834296567,2.7409,182.52,182.47,2.7416]
[1734834296762,2.98,182.53,182.41,2.98]
[1734834296970,2.98,182.53,182.44,2.742]
[1734834296971,5.7208,182.53,182.44,2.742]
[1734834297273,5.7208,182.53,182.41,2.98]
[1734834297468,1.7208,182.56,182.42,16.56851385]
[1734834297668,7.4412,182.56,182.43,1.7515]
[1734834298173,4.7008,182.56,182.44,3.3207]
[1734834298473,1.7208,182.56,182.45,2.98]
[1734834298673,2.7405,182.55,182.5,2.7411]
[1734834298870,4.7008,182.56,182.45,2.98]
[1734834299567,7.4412,182.56,182.5,2.7411]
[1734834299974,5.7204,182.56,182.5,2.7411]
[1734834300171,5.7204,182.56,182.45,2.98]
[1734834300370,2.74,182.58,182.45,19.54851385]
[1734834300564,6.2582,182.59,182.45,16.56851385]
[1734834300765,6.2582,182.59,182.44,3.3207]
[1734834300766,16.56851385,182.58,182.44,3.3207]
[1734834300972,1.6169,182.56,182.44,6.3007]
[1734834301171,2.98,182.55,182.44,6.3007]
[1734834301374,1.6169,182.56,182.52,2.7408]
[1734834302075,2.98,182.58,182.54,2.7405]
[1734834302276,2.98,182.58,182.48,2.98]
[1734834302671,2.98,182.58,182.54,2.7405]
[1734834303373,2.98,182.58,182.45,16.56851385]
[1734834303679,2.7405,182.55,182.46,2.98]
[1734834304377,2.98,182.54,182.43,1.7515]
[1734834304581,2.98,182.54,182.46,2.7418]
[1734834304779,18.16071385,182.58,182.43,21.30001385]
[1734834304979,2.7405,182.56,182.43,21.30001385]
[1734834305178,2.7405,182.56,182.52,2.7409]
[1734834305673,4.5722,182.58,182.52,2.7409]
[1734834305880,4.5722,182.58,182.47,2.98]
[1734834306081,57.02,182.71,182.47,2.98]
[1734834306082,57.02,182.71,182.49,16.56851385]
[1734834306286,2.7391,182.64,182.52,16.56851385]
[1734834306486,21.54641385,182.69,182.6,2.7397]
[1734834306678,21.54641385,182.69,182.53,2.98]
[1734834307180,21.54641385,182.69,182.57,2.7401]
[1734834307680,2.7394,182.63,182.57,2.7401]
[1734834307875,5.7194,182.63,182.57,2.7401]
[1734834308076,21.54641385,182.69,182.53,2.98]
[1734834308280,2.7389,182.66,182.6,2.7397]
[1734834308786,5.7189,182.66,182.6,2.7397]
[1734834309479,2.98,182.66,182.6,2.7397]
[1734834309676,2.739,182.65,182.6,2.7397]
[1734834309978,2.739,182.65,182.57,2.98]
[1734834309979,2.98,182.66,182.57,2.98]
[1734834310183,2.739,182.65,182.57,2.98]
[1734834310486,2.98,182.66,182.6,2.7396]
[1734834310687,5.7188,182.66,182.6,2.7396]
[1734834310883,2.98,182.66,182.57,2.98]
[1734834311084,4.9779,182.69,182.57,2.98]
[1734834311386,2.7386,182.68,182.57,2.98]
[1734834311578,56.98,182.82,182.61,16.56851385]
[1734834311781,16.56851385,182.79,182.62,2.98]
[1734834311979,1.00528289,182.78,182.62,2.98]
[1734834312283,2.98,182.77,182.67,2.7385]
[1734834312690,2.7376,182.74,182.67,2.7385]
[1734834312990,2.98,182.74,182.64,16.56851385]
[1734834313190,2.98,182.77,182.65,2.98]
[1734834313384,7.9783,182.81,182.67,16.56851385]
[1734834313680,7.9783,182.81,182.74,2.7376]
[1734834313877,10.7149,182.81,182.7,2.98]
[1734834314382,7.9783,182.81,182.76,2.7373]
[1734834315588,7.9783,182.81,182.7,19.54851385]
[1734834315789,3.2506,182.81,182.7,19.54851385]
[1734834316189,3.2506,182.81,182.7,2.98]
[1734834316386,3.2506,182.81,182.67,19.54851385]
[1734834316787,2.737,182.79,182.73,2.7378]
[1734834317391,2.737,182.78,182.67,19.54851385]
[1734834318094,2.98,182.8,182.67,19.54851385]
[1734834318290,1.71,182.79,182.67,2.98]
[1734834318684,2.7376,182.74,182.68,2.7385]
[1734834319087,2.98,182.75,182.65,1.6353]
[1734834319289,2.98,182.75,182.66,2.7387]
[1734834319593,2.98,182.75,182.63,2.98]
[1734834319787,2.7379,182.73,182.63,2.98]
[1734834319993,2.98,182.75,182.64,16.56851385]
[1734834320693,2.98,182.75,182.67,2.7386]
[1734834320990,2.98,182.78,182.67,19.54851385]
[1734834321495,2.98,182.78,182.72,2.7378]
[1734834321692,2.98,182.78,182.67,19.54851385]
[1734834322101,2.7373,182.76,182.7,2.7382]
[1734834322395,2.98,182.78,182.67,2.98]
[1734834322998,2.7375,182.75,182.69,2.7383]
[1734834324099,2.737,182.78,182.72,2.7379]
[1734834324396,5.717,182.78,182.72,2.7379]
[1734834324788,2.737,182.78,182.72,2.7379]
[1734834325301,2.737,182.78,182.7,2.7382]
[1734834325503,2.737,182.78,182.67,19.54851385]
[1734834326606,3.2506,182.81,182.7,16.56851385]
[1734834326607,5.9872,182.81,182.7,16.56851385]
[1734834326799,3.2506,182.81,182.71,2.98]
[1734834326999,3.2506,182.81,182.77,2.737]
[1734834327194,3.2506,182.81,182.71,2.98]
[1734834327195,1.6395,182.81,182.73,16.56851385]
[1734834327501,1.7133,182.86,182.76,16.56851385]
[1734834327800,1.7133,182.86,182.77,2.98]
[1734834328303,4.4491,182.86,182.8,2.7366]
[1734834329506,4.4491,182.86,182.77,2.98]
[1734834329709,4.4491,182.86,182.81,2.7365]
[1734834330500,4.4491,182.86,182.77,2.98]
[1734834330708,2.7363,182.84,182.77,2.98]
[1734834331101,2.7363,182.84,182.78,2.7369]
[1734834332009,2.7363,182.84,182.79,2.7368]
[1734834332602,1.7133,182.86,182.77,2.98]
[1734834332804,2.98,182.9,182.77,2.98]
[1734834333302,2.7355,182.88,182.81,2.7365]
[1734834333505,2.7355,182.88,182.77,2.98]
[1734834333706,2.7355,182.88,182.78,2.98]
[1734834333909,2.98,182.9,182.78,2.98]
[1734834334097,1.728,182.91,182.79,16.56851385]
[1734834334306,1.728,182.91,182.87,2.7355]
[1734834334506,4.4697,182.96,182.84,2.98]
[1734834334803,4.4697,182.96,182.85,2.98]
[1734834334804,4.7152,182.96,182.85,2.98]
[1734834335507,2.7346,182.95,182.89,2.7352]
[1734834336009,3.3932,182.99,182.89,2.98]
[1734834336304,1.6697,183.05,182.91,16.56851385]
[1734834336508,1.6697,183.05,182.98,2.734]
[1734834336509,2.7332,183.04,182.98,2.734]
[1734834336707,4.6497,183.05,182.98,2.734]
[1734834336904,1.6697,183.05,182.98,2.734]
[1734834337107,2.733,183.06,182.95,2.98]
[1734834337409,1.6697,183.11,182.97,16.56851385]
[1734834337904,1.6697,183.11,183.0,16.56851385]
[1734834338111,1.6697,183.11,183.01,2.98]
[1734834338304,2.7324,183.09,183.01,5.7134]
[1734834338609,1.6697,183.11,183.01,2.98]
[1734834339205,2.7324,183.1,183.03,2.7333]
[1734834339508,1.6697,183.11,183.0,2.98]
[1734834340010,28.5087933,183.11,183.0,2.98]
[1734834341613,28.5087933,183.11,182.98,2.98]
[1734834341910,28.5087933,183.11,182.98,5.7139]
[1734834342814,28.5087933,183.11,182.99,2.7339]
[1734834343209,2.733,183.06,182.99,2.7339]
[1734834343411,2.98,183.08,182.99,2.7339]
[1734834344408,2.733,183.05,182.99,2.7339]
[1734834347421,2.98,183.08,183.01,2.7335]
[1734834347618,1.6697,183.11,183.01,2.7335]
[1734834348023,1.6697,183.11,182.98,2.98]
[1734834348224,3.3069,183.12,183.03,26.8390933]
[1734834348412,3.3069,183.12,183.04,2.98]
[1734834348613,2.7318,183.14,183.07,2.7327]
[1734834348922,2.7318,183.14,183.04,2.98]
[1734834349127,2.7315,183.15,183.04,2.98]
[1734834349720,2.7315,183.15,183.06,26.8390933]
[1734834350520,2.7315,183.15,183.09,2.7323]
[1734834350721,2.7315,183.15,183.09,5.7123]
[1734834350919,2.7317,183.14,183.09,5.7123]
[1734834351323,3.4789,183.17,183.09,29.8190933]
[1734834351715,3.4789,183.17,183.12,2.7318]
[1734834352124,6.2101,183.17,183.09,29.8190933]
[1734834352526,6.2101,183.17,183.11,2.732]
[1734834353822,2.7312,183.17,183.11,2.732]
[1734834355928,2.7312,183.17,183.11,5.692]
[1734834356129,2.7313,183.16,183.11,5.692]
[1734834356630,2.98,183.2,183.08,2.96]
[1734834356829,2.98,183.2,183.07,2.96]
[1734834357532,2.98,183.2,183.09,2.7324]
[1734834358132,2.7316,183.15,183.09,2.7324]
[1734834358631,2.98,183.2,183.09,2.7324]
[1734834359531,2.7317,183.14,183.09,2.7324]
[1734834360334,2.7314,183.16,183.07,2.96]
[1734834361134,2.7314,183.16,183.1,2.7321]
[1734834361335,2.7314,183.16,183.07,2.96]
[1734834362034,2.7314,183.16,183.08,16.49311264]
[1734834362234,2.7314,183.16,183.11,2.7321]
[1734834363528,2.96,183.2,183.08,16.49311264]
[1734834363736,8.0929,183.23,183.11,16.49311264]
[1734834363937,5.1329,183.23,183.11,16.49311264]
[1734834364127,2.7306,183.22,183.16,2.7312]
[1734834364737,2.7306,183.22,183.17,2.7311]
[1734834366332,1.698,183.23,183.15,2.96]
[1734834366635,4.4283,183.23,183.18,2.731]
[1734834368835,2.7303,183.23,183.18,2.731]
[1734834369043,2.73,183.26,183.17,16.49311264]
[1734834369238,2.73,183.26,183.18,2.96]
[1734834370435,1.6575,183.28,183.2,16.49311264]
[1734834371337,1.6575,183.28,183.18,6.1632]
[1734834371338,2.96,183.36,183.23,16.49311264]
[1734834371540,2.96,183.36,183.24,2.96]
[1734834371737,2.7288,183.33,183.28,2.7295]
[1734834371942,4.9073,183.41,183.24,2.96]
[1734834372243,3.96196381,183.4,183.26,16.49311264]
[1734834372537,4.9073,183.41,183.29,16.49311264]
[1734834372742,4.9073,183.41,183.3,2.96]
[1734834373144,2.7278,183.4,183.34,2.7286]
[1734834373340,4.9073,183.41,183.34,2.96]
[1734834373541,3.2633,183.41,183.34,2.96]
[1734834374042,4.604,183.46,183.35,26.72392343]
[1734834374641,1.644,183.46,183.35,26.72392343]
[1734834374837,1.644,183.46,183.38,2.7281]
[1734834375037,1.644,183.46,183.39,2.96]
[1734834375234,2.96,183.45,183.32,26.72392343]
[1734834375433,2.7281,183.38,183.32,29.45272343]
[1734834375643,2.7281,183.38,183.31,2.96]
[1734834375644,29.68392343,183.45,183.31,2.96]
[1734834376144,29.68392343,183.45,183.29,26.72392343]
[1734834376340,1.00160935,183.44,183.29,26.72392343]
[1734834376747,26.72392343,183.42,183.28,5.6895]
[1734834376944,6.3206,183.41,183.26,26.72392343]
[1734834377245,26.72392343,183.39,183.25,2.96]
[1734834377943,2.7292,183.31,183.25,2.96]
[1734834378148,2.7292,183.31,183.25,5.69]
[1734834378446,2.7299,183.26,183.2,26.72392343]
[1734834378646,2.96,183.29,183.2,29.45462343]
[1734834378848,2.96,183.29,183.2,26.72392343]
[1734834379044,1.6747,183.3,183.21,2.96]
[1734834379250,1.6747,183.3,183.23,26.72392343]
[1734834379851,4.404,183.3,183.23,29.45412343]
[1734834380250,1.6747,183.3,183.21,2.96]
[1734834381153,1.6747,183.3,183.2,26.72392343]
[1734834381756,1.6747,183.3,183.24,2.7301]
[1734834382251,1.6415,183.32,183.23,26.72392343]
[1734834383349,2.96,183.34,183.23,26.72392343]
[1734834384158,2.7292,183.31,183.25,2.73]
[1734834384450,2.96,183.34,183.25,2.73]
[1734834384649,2.96,183.34,183.23,26.72392343]
[1734834384955,2.96,183.34,183.25,2.73]
[1734834385154,2.96,183.35,183.23,26.72392343]
[1734834385353,2.96,183.35,183.23,28.40392343]
[1734834387050,2.7291,183.32,183.26,2.7299]
[1734834387251,2.96,183.35,183.23,28.40392343]
[1734834388757,2.7295,183.29,183.23,32.41422343]
[1734834388956,2.96,183.31,183.23,29.68392343]
[1734834389153,2.96,183.32,183.23,29.68392343]
[1734834389352,5.6891,183.32,183.26,2.7298]
[1734834389655,2.96,183.32,183.2,26.72392343]
[1734834389852,3.3292,183.31,183.2,26.72392343]
[1734834390646,2.96,183.32,183.23,26.72392343]
[1734834390956,2.96,183.32,183.23,29.68392343]
[1734834392153,5.689,183.32,183.26,2.7298]
[1734834392351,5.689,183.32,183.23,29.68392343]
[1734834392953,2.96,183.32,183.23,29.68392343]
[1734834393258,2.96,183.35,183.23,29.68392343]
[1734834393454,2.96,183.35,183.26,26.72392343]
[1734834393752,1.6763,183.37,183.29,26.72392343]
[1734834394154,2.7284,183.36,183.31,2.729]
[1734834394358,2.96,183.4,183.29,16.45614201]
[1734834395152,2.7282,183.38,183.33,2.7287]
[1734834396558,2.728,183.39,183.34,2.7287]
[1734834397759,2.96,183.41,183.32,16.45614201]
[1734834398262,2.7276,183.41,183.35,2.7284]
[1734834398463,3.2975,183.44,183.32,16.45614201]
[1734834398665,3.2975,183.44,183.35,16.45614201]
[1734834398866,6.0247,183.44,183.38,2.728]
[1734834399967,3.2975,183.44,183.37,2.7282]
[1734834400161,3.2975,183.44,183.33,1.6502]
[1734834400368,3.2975,183.44,183.3,2.96]
[1734834401967,2.7282,183.38,183.32,2.729]
[1734834402363,2.96,183.4,183.32,2.729]
[1734834402563,2.96,183.4,183.3,2.96]
[1734834402872,2.96,183.4,183.02,5.492]
[1734834402873,1.7252,183.39,183.24,29.70139696]
[1734834403163,2.7288,183.34,183.28,2.7295]
[1734834404069,2.7289,183.33,183.28,2.7295]
[1734834405071,2.96,183.35,183.28,2.7295]
[1734834405365,2.96,183.37,183.3,2.7292]
[1734834405568,2.96,183.37,183.24,29.70139696]
[1734834405967,2.7287,183.34,183.28,2.7294]
[1734834406763,2.96,183.37,183.24,29.70139696]
[1734834406969,3.4641,183.36,183.24,29.70139696]
[1734834407662,3.4641,183.36,183.26,2.7299]
[1734834408472,2.7291,183.32,183.26,2.7299]
[1734834409273,2.96,183.33,183.27,2.7296]
[1734834409569,5.6888,183.33,183.27,2.7296]
[1734834410267,2.7285,183.35,183.29,2.7293]
[1734834411565,5.6884,183.36,183.24,29.70139696]
[1734834411762,5.6884,183.36,183.28,26.74139696]
[1734834411962,5.6884,183.36,183.28,29.70139696]
[1734834412169,2.96,183.36,183.28,2.96]
[1734834412572,2.96,183.36,183.25,29.70139696]
[1734834412765,2.7288,183.33,183.28,2.7294]
[1734834412963,2.96,183.36,183.25,29.70139696]
[1734834413776,2.7287,183.34,183.29,2.7294]
[1734834415776,1.7252,183.39,183.25,29.70139696]
[1734834415971,2.96,183.39,183.28,26.74139696]
[1734834416175,2.96,183.39,183.29,2.96]
[1734834416379,2.7285,183.36,183.31,2.7291]
[1734834416879,2.96,183.39,183.29,2.96]
[1734834417174,2.96,183.39,183.26,2.96]
[1734834417969,2.7287,183.34,183.28,2.7294]
[1734834418475,2.7287,183.34,183.29,2.7294]
[1734834418876,2.7285,183.35,183.26,2.96]
[1734834419076,2.7285,183.35,183.3,2.7293]
[1734834420477,2.96,183.35,183.21,26.74139696]
[1734834420683,3.3559,183.34,183.21,26.74139696]
[1734834420879,5.0923,183.34,183.19,60.22656416]
[1734834421076,26.74139696,183.3,183.19,60.22656416]
[1734834421387,2.96,183.29,183.19,60.22656416]
[1734834421885,2.96,183.29,183.18,2.731]
[1734834423084,26.74139696,183.27,183.12,26.74139696]
[1734834423293,4.9029,183.26,183.09,26.74139696]
[1734834423483,26.74139696,183.24,183.09,29.70139696]
[1734834423687,2.7315,183.15,183.09,32.43369696]
[1734834423890,2.96,183.17,183.09,32.43369696]
[1734834424188,2.7314,183.16,183.09,32.43369696]
[1734834424384,2.96,183.17,183.08,60.22656416]
[1734834424592,2.96,183.17,183.03,29.70139696]
[1734834424593,2.7317,183.14,183.03,29.70139696]
[1734834424888,2.96,183.13,183.03,29.70139696]
[1734834425291,5.6918,183.13,183.03,29.70139696]
[1734834425493,2.96,183.13,183.03,29.70139696]
[1734834425791,2.96,183.13,183.06,26.74139696]
[1734834426591,8.955,183.16,183.06,26.74139696]
[1734834426792,6.2235,183.16,183.08,2.7325]
[1734834427694,2.7317,183.14,183.06,26.74139696]
[1734834427898,2.7317,183.14,183.07,2.7326]
[1734834428692,2.732,183.12,183.05,2.733]
[1734834428895,6.2235,183.16,183.05,2.733]
[1734834429195,2.7321,183.12,183.05,2.733]
[1734834429393,2.96,183.15,183.05,2.733]
[1734834431397,2.7319,183.12,183.05,2.733]
[1734834431694,2.96,183.11,183.04,2.7331]
[1734834433501,2.7323,183.1,183.04,2.7331]
[1734834433698,1.6181,183.15,183.03,26.74139696]
[1734834433996,4.5781,183.15,183.03,26.74139696]
[1734834434202,2.96,183.16,183.06,26.74139696]
[1734834434495,2.96,183.16,183.1,2.7321]
[1734834434694,5.6914,183.16,183.06,29.70139696]
[1734834434896,2.96,183.16,183.06,29.70139696]
[1734834435097,2.96,183.16,183.1,2.7321]
[1734834435402,2.96,183.16,183.06,26.74139696]
[1734834435601,2.96,183.16,183.06,29.47419696]
[1734834435805,4.9477,183.27,183.13,26.74139696]
[1734834435995,3.96254418,183.26,183.13,26.74139696]
[1734834436300,29.70139696,183.26,183.1,26.74139696]
[1734834436500,2.7313,183.17,183.1,29.47359696]
[1734834436700,2.96,183.17,183.1,26.74139696]
[1734834436898,2.96,183.2,183.1,26.74139696]
[1734834438201,5.6908,183.2,183.14,2.7316]
[1734834438400,2.96,183.23,183.13,29.70139696]
[1734834438896,2.7305,183.22,183.17,2.7312]
[1734834439102,2.7305,183.22,183.13,29.70139696]
[1734834439800,2.7305,183.22,183.16,2.7312]
[1734834439999,2.7306,183.21,183.16,2.7312]
[1734834440200,2.96,183.23,183.13,29.70139696]
[1734834441003,4.9477,183.27,183.13,29.70139696]
[1734834441302,2.96,183.26,183.13,29.70139696]
[1734834441505,2.96,183.26,183.16,2.7313]
[1734834441506,2.7305,183.22,183.16,2.7313]
[1734834442205,2.96,183.22,183.13,2.96]
[1734834442505,2.96,183.22,183.11,3.3824]
[1734834442902,2.7309,183.19,183.14,2.7316]
[1734834443408,5.6905,183.22,183.16,2.7313]
[1734834444709,2.7305,183.22,183.16,2.7313]
[1734834444909,2.7306,183.21,183.12,16.48466649]
[1734834445103,2.96,183.22,183.14,2.7315]
[1734834445708,2.7308,183.2,183.14,2.7315]
[1734834446699,2.7308,183.2,183.12,19.44466649]
[1734834446700,2.7306,183.21,183.15,2.7315]
[1734834450418,2.7313,183.17,183.11,2.7321]
[1734834450810,2.96,183.26,183.13,16.48466649]
[1734834451115,16.48466649,183.22,183.03,5.093]
[1734834451309,16.48466649,183.19,183.03,5.093]
[1734834451510,16.48466649,183.16,183.03,5.093]
[1734834451714,2.96,183.15,183.03,5.093]
[1734834451910,2.96,183.15,183.03,3.353]
[1734834452115,2.7324,183.1,183.03,6.0863]
[1734834452315,5.6924,183.1,183.03,6.0863]
[1734834452709,5.6924,183.1,183.04,2.7331]
[1734834455717,2.96,183.1,182.99,18.22466649]
[1734834455913,5.6923,183.1,183.04,2.7331]
[1734834459019,2.96,183.1,182.99,18.22466649]
[1734834459215,2.96,183.1,182.98,3.2901]
[1734834459410,2.7333,183.03,182.97,1.64907771]
[1734834459613,2.7333,183.03,182.95,2.96]
[1734834460011,2.7333,183.03,182.98,2.734]
[1734834460210,2.7332,183.04,182.98,2.734]
[1734834460414,2.7332,183.04,182.98,2.67245206]
[1734834460922,5.6932,183.04,182.98,2.734]
[1734834463220,5.6932,183.04,182.95,2.96]
[1734834463426,2.96,183.07,182.96,16.48466649]
[1734834464120,2.96,183.07,182.95,2.96]
[1734834464121,5.0165,183.09,182.99,16.48466649]
[1734834464326,5.0165,183.09,183.0,2.96]
[1734834464625,7.7489,183.09,183.04,2.7331]
[1734834464820,2.96,183.11,183.0,2.96]
[1734834465023,2.96,183.11,183.0,6.3902]
[1734834465523,2.96,183.11,183.02,16.48466649]
[1734834465927,2.7319,183.13,183.08,2.7325]
[1734834466127,5.6919,183.13,183.08,2.7325]
[1734834466723,5.6919,183.13,183.05,19.44466649]
[1734834466724,2.7319,183.12,183.07,2.7327]
[1734834467320,2.7321,183.11,183.05,5.6929]
[1734834467525,2.7321,183.11,183.02,19.44466649]
[1734834467926,2.7328,183.07,182.87,57.28818117]
[1734834468129,2.96,183.07,182.96,2.96]
[1734834468428,2.96,183.07,182.97,2.7341]
[1734834468618,2.7335,183.02,182.97,2.7341]
[1734834470324,2.96,183.03,182.98,2.734]
[1734834472227,5.6933,183.03,182.98,2.734]
[1734834473526,2.96,183.03,182.92,21.37666649]
[1734834473825,2.7337,183.01,182.96,2.7342]
[1734834480632,2.7337,183.01,182.95,2.7344]
[1734834480827,2.7337,183.0,182.95,2.7344]
[1734834481629,2.96,183.04,182.93,2.96]
[1734834483141,2.96,183.04,182.87,45.44368493]
[1734834483536,2.96,183.04,182.91,2.735]
[1734834483937,2.7343,182.96,182.91,2.735]
[1734834484137,2.96,182.98,182.87,42.48368493]
[1734834484441,2.7347,182.94,182.88,2.7355]
[1734834484837,2.7347,182.94,182.89,2.7354]
[1734834485434,3.418,182.97,182.87,42.48368493]
[1734834485638,6.378,182.97,182.9,2.7352]
[1734834486139,2.7345,182.96,182.9,2.7352]
[1734834487540,18.24366649,183.06,182.88,16.48466649]
[1734834487739,3.3602,183.05,182.91,16.48466649]
[1734834487935,2.7336,183.01,182.95,2.7344]
[1734834489340,2.7337,183.0,182.95,2.7344]